bitfinex/quotes_ETHUSD_20240822
["timestamp","ask_amount","ask_price","bid_price","bid_amount"]
[1724313286062,36.2963055,2635.9,2635.8,110.82530948]
[1724313286471,36.34112669,2635.9,2635.8,113.20453297]
[1724313286949,32.54734669,2635.9,2635.8,123.15313297]
[1724313287160,25.4505908,2635.9,2635.8,123.15313297]
[1724313288093,25.4505908,2635.9,2635.8,119.75472506]
[1724313288246,25.4505908,2635.9,2635.8,120.29896072]
[1724313288448,25.4505908,2635.9,2635.8,121.75654284]
[1724313288649,25.4505908,2635.9,2635.8,120.29872019]
[1724313288894,22.72516961,2635.9,2635.8,120.29872019]
[1724313289507,22.72516961,2635.9,2635.8,123.15289244]
[1724313289677,22.72516961,2635.9,2635.8,120.77366895]
[1724313290057,22.72516961,2635.9,2635.8,119.85226811]
[1724313290282,22.72516961,2635.9,2635.8,120.77373094]
[1724313292595,22.72516961,2635.9,2635.8,120.77344885]
[1724313293511,22.72516961,2635.9,2635.8,110.82484885]
[1724313295005,22.72516961,2635.9,2635.8,109.90338602]
[1724313295376,22.72516961,2635.9,2635.8,110.82477563]
[1724313298008,22.72516961,2635.9,2635.8,110.34982687]
[1724313298203,22.72516961,2635.9,2635.8,109.99544625]
[1724313298549,22.72516961,2635.9,2635.8,110.34987611]
[1724313299222,22.72516961,2635.9,2635.8,105.96721273]
[1724313299554,32.48486961,2635.9,2635.8,52.00463861]
[1724313299760,32.48486961,2635.9,2635.8,35.16577739]
[1724313300047,32.48486961,2635.9,2635.8,33.63718967]
[1724313300433,32.48486961,2635.9,2635.8,33.63720617]
[1724313300620,32.48486961,2635.9,2635.8,34.03309839]
[1724313300840,32.48486961,2635.9,2635.8,34.58309839]
[1724313301015,32.48486961,2635.9,2635.8,37.58384232]
[1724313303605,32.48486961,2635.9,2635.8,72.58384232]
[1724313303808,32.48486961,2635.9,2635.8,71.66202981]
[1724313304011,32.48486961,2635.9,2635.8,72.58371356]
[1724313304227,32.48486961,2635.9,2635.8,73.48941226]
[1724313304228,22.72516961,2635.9,2635.8,73.48941226]
[1724313304451,22.77013589,2635.9,2635.8,73.48941226]
[1724313305219,22.77013589,2635.9,2635.8,73.96436102]
[1724313305426,22.77013589,2635.9,2635.8,77.75753112]
[1724313305620,22.77013589,2635.9,2635.8,85.3232956]
[1724313306139,22.77013589,2635.9,2635.8,75.7772956]
[1724313306342,22.72516961,2635.9,2635.8,75.7772956]
[1724313306512,22.72516961,2635.9,2635.8,78.33339678]
[1724313306855,22.77013056,2635.9,2635.8,75.7772956]
[1724313307026,21.36400861,2635.9,2635.8,75.7772956]
[1724313307642,21.36400861,2635.9,2635.8,78.33343203]
[1724313307820,21.36400861,2635.9,2635.8,75.7772956]
[1724313308670,21.36400861,2635.9,2635.8,77.75753962]
[1724313308946,21.36400861,2635.9,2635.8,75.7772956]
[1724313309749,20.02875808,2635.9,2635.8,75.7772956]
[1724313310228,20.02875808,2635.9,2635.8,75.77697649]
[1724313310763,20.02875808,2635.9,2635.8,74.855559]
[1724313310940,20.02875808,2635.9,2635.8,75.77689552]
[1724313311656,20.02875808,2635.9,2635.8,77.75664467]
[1724313312240,20.02875808,2635.9,2635.8,76.77229358]
[1724313312732,19.98379713,2635.9,2635.8,76.77229358]
[1724313312915,17.30319713,2635.9,2635.8,76.77229358]
[1724313313128,17.34813138,2635.9,2635.8,88.19319945]
[1724313313364,17.34813138,2635.9,2635.8,88.19298945]
[1724313313731,17.30319713,2635.9,2635.8,88.19298945]
[1724313314065,17.3480768,2635.9,2635.8,88.19298945]
[1724313315980,17.30319713,2635.9,2635.8,88.19298945]
[1724313316534,17.30319713,2635.9,2635.8,77.77238712]
[1724313316787,17.30319713,2635.9,2635.8,74.79233443]
[1724313317159,17.30319713,2635.9,2635.8,77.29798678]
[1724313319788,17.30319713,2635.9,2635.8,80.65909173]
[1724313319965,17.30319713,2635.9,2635.8,78.28235517]
[1724313320175,17.30319713,2635.9,2635.8,116.69723273]
[1724313320359,15.40630713,2635.9,2635.8,116.69723273]
[1724313320740,13.50941713,2635.9,2635.8,118.35785129]
[1724313322987,13.50941713,2635.9,2635.8,117.43672477]
[1724313323360,13.50941713,2635.9,2635.8,118.35783356]
[1724313324000,11.2269055,2635.9,2635.8,118.35783356]
[1724313324298,7.81874713,2635.9,2635.8,118.35783356]
[1724313324453,7.81874713,2635.9,2635.8,115.981097]
[1724313325258,7.81874713,2635.9,2635.8,115.98097943]
[1724313326305,7.81874713,2635.9,2635.8,115.05987064]
[1724313326597,7.81874713,2635.9,2635.8,115.98095181]
[1724313327225,6.41266153,2635.9,2635.8,115.98095181]
[1724313329169,4.51577153,2635.9,2635.8,115.96858664]
[1724313329585,0.72199153,2635.9,2635.8,115.96858664]
[1724313329776,0.72199153,2635.9,2635.8,115.96844008]
[1724313329993,9.7353,2636.4,2636.3,12.07957]
[1724313330306,9.7353,2636.4,2636.3,58.74579166]
[1724313330511,9.7353,2636.4,2636.3,63.05128016]
[1724313330685,9.7353,2636.4,2636.3,64.56943573]
[1724313331122,9.7353,2636.4,2636.3,61.92945673]
[1724313331665,9.7353,2636.4,2636.3,58.36458573]
[1724313332593,9.7353,2636.4,2636.3,58.83895412]
[1724313332906,9.7353,2636.4,2636.3,95.17640952]
[1724313333080,9.7353,2636.4,2636.3,80.20749652]
[1724313333279,9.7353,2636.4,2636.3,82.18751282]
[1724313333811,9.7353,2636.4,2636.3,81.26701077]
[1724313334013,9.7353,2636.4,2636.3,82.18762395]
[1724313334370,9.7353,2636.4,2636.3,83.71120095]
[1724313334627,9.7353,2636.4,2636.3,48.71120095]
[1724313336208,9.7353,2636.4,2636.3,39.20739077]
[1724313336409,9.7353,2636.4,2636.3,32.5017359]
[1724313336580,10.70883,2636.4,2636.3,9.48918888]
[1724313336783,10.70883,2636.4,2636.3,1.62062802]
[1724313337089,10.75382786,2636.4,2636.3,1.0540877]
[1724313337987,10.75382786,2636.4,2636.3,0.7]
[1724313338341,10.75382786,2636.4,2636.3,1.0540877]
[1724313338511,10.75382786,2636.4,2636.3,0.7]
[1724313338826,10.75382786,2636.4,2636.1,0.3540877]
[1724313339119,9.4619,2636.2,2636.0,1.0540877]
[1724313339319,9.4619,2636.2,2636.1,0.35445056]
[1724313339527,10.6460464,2636.2,2636.1,0.35445056]
[1724313339679,10.6460464,2636.2,2636.1,5.95133289]
[1724313339680,9.4619,2636.2,2636.1,5.95133289]
[1724313340120,9.4619,2636.2,2636.1,1.64845056]
[1724313340606,9.4619,2636.2,2636.1,0.35445056]
[1724313340818,10.40809,2636.2,2636.1,0.35445056]
[1724313341124,10.40809,2636.2,2636.0,3.35445056]
[1724313341323,10.40809,2636.2,2636.0,3.0]
[1724313342639,10.40809,2636.2,2635.9,1.294]
[1724313342844,9.7177,2636.0,2635.9,1.294]
[1724313343002,9.7177,2636.0,2635.9,1.64850247]
[1724313343333,9.7177,2636.0,2635.9,1.294]
[1724313343492,9.7177,2636.0,2635.9,1.64850247]
[1724313343691,9.7177,2636.0,2635.9,1.294]
[1724313345330,9.7177,2636.0,2635.9,5.08777]
[1724313345525,9.7177,2636.0,2635.9,8.08777]
[1724313345730,9.7177,2636.0,2635.9,19.220209]
[1724313345923,9.7177,2636.0,2635.9,19.42765809]
[1724313346124,9.7177,2636.0,2635.9,19.78211622]
[1724313348606,9.7177,2636.0,2635.9,16.85722322]
[1724313348827,9.7177,2636.0,2635.9,16.34782089]
[1724313349017,9.7177,2636.0,2635.9,15.99336276]
[1724313349222,9.7177,2636.0,2635.9,16.34782361]
[1724313350313,9.7025,2636.7,2636.3,4.4931]
[1724313350519,9.7025,2636.7,2636.6,1.294]
[1724313351899,9.7025,2636.7,2636.4,4.294]
[1724313354555,9.7025,2636.7,2636.6,1.294]
[1724313356300,9.7025,2636.7,2636.4,4.294]
[1724313356535,10.7135385,2636.7,2636.5,3.0]
[1724313356729,10.7135385,2636.7,2636.4,1.294]
[1724313357789,9.7025,2636.7,2636.6,1.294]
[1724313357956,9.7025,2636.7,2636.6,4.294]
[1724313358476,9.7025,2636.7,2636.6,8.08676]
[1724313359474,9.7025,2636.7,2636.6,4.294]
[1724313359852,9.7025,2636.7,2636.6,8.08676]
[1724313360052,9.7025,2636.7,2636.6,8.78676]
[1724313360346,9.7025,2636.7,2636.6,12.57952]
[1724313360546,9.2585,2637.2,2636.8,3.7924]
[1724313360850,9.2585,2637.2,2637.0,1.294]
[1724313361267,0.04316396,2637.1,2637.0,1.294]
[1724313361580,9.2585,2637.2,2637.0,1.294]
[1724313361807,0.51108024,2637.1,2637.0,1.294]
[1724313361978,0.5542476,2637.1,2637.0,1.294]
[1724313362339,0.04316736,2637.1,2637.0,5.08618]
[1724313362632,9.2585,2637.2,2637.0,4.294]
[1724313362790,9.2585,2637.2,2637.1,6.79204]
[1724313364369,9.3786,2637.5,2637.2,4.49189]
[1724313364582,10.31696,2637.5,2637.4,1.294]
[1724313365612,10.3591255,2637.5,2637.4,1.294]
[1724313368230,9.4207655,2637.5,2637.4,1.294]
[1724313375878,9.4207655,2637.5,2637.3,3.0]
[1724313376063,9.4207655,2637.5,2637.2,1.994]
[1724313376064,9.4207655,2637.5,2637.4,3.0]
[1724313376279,9.4207655,2637.5,2637.2,3.0]
[1724313376476,9.1493,2637.3,2637.0,3.0]
[1724313376647,9.1493,2637.3,2636.9,6.512455]
[1724313376851,9.1493,2637.1,2636.9,6.512455]
[1724313377090,0.04259296,2637.0,2636.9,6.512455]
[1724313377477,0.04259296,2637.0,2636.9,10.304785]
[1724313378176,0.04259296,2637.0,2636.9,6.512455]
[1724313378377,0.04259296,2637.0,2636.9,10.304785]
[1724313378704,0.04259296,2637.0,2636.9,8.78633]
[1724313378904,0.04259296,2637.0,2636.9,12.675055]
[1724313379370,0.04259296,2637.0,2636.9,16.97678733]
[1724313380195,9.069,2637.4,2637.1,3.79204]
[1724313380537,9.069,2637.4,2637.3,5.08575]
[1724313380832,1.520152,2638.9,2638.1,3.79048]
[1724313380962,6.58800289,2639.5,2639.0,37.86799583]
[1724313380963,0.42236399,2639.5,2639.0,37.86799583]
[1724313381162,0.42236399,2639.5,2639.4,8.87146]
[1724313381400,1.19350706,2640.8,2640.7,0.7]
[1724313381603,9.94546076,2641.2,2640.1,0.7]
[1724313381758,1.07123231,2641.1,2640.2,0.7]
[1724313381958,1.294,2641.0,2640.2,0.7]
[1724313382161,0.07668623,2640.9,2640.1,1.294]
[1724313382365,0.12856076,2641.2,2640.8,0.7]
[1724313382610,0.12856076,2641.2,2641.0,1.294]
[1724313382905,0.12856076,2641.2,2641.1,0.7]
[1724313383390,0.12856076,2641.2,2641.1,1.25]
[1724313383800,0.12856076,2641.2,2641.1,8.026693]
[1724313383982,0.12856076,2641.2,2641.1,5.544]
[1724313384310,0.05,2643.2,2641.1,5.544]
[1724313384311,9.1817,2642.8,2642.1,0.7]
[1724313384610,9.1817,2642.8,2641.7,0.7]
[1724313384802,0.07668623,2642.7,2641.7,0.7]
[1724313385001,0.07668623,2642.7,2641.4,0.7]
[1724313385002,6.12881623,2642.7,2641.4,0.7]
[1724313385198,11.382,2642.4,2641.4,0.7]
[1724313387117,0.07668623,2642.3,2641.4,0.7]
[1724313387291,11.382,2642.4,2641.4,0.7]
[1724313387808,9.1139,2642.4,2641.5,0.7]
[1724313388116,0.91139,2642.3,2641.2,3.0]
[1724313388329,0.91139,2642.3,2641.1,0.7]
[1724313388330,0.07668623,2642.2,2641.1,0.7]
[1724313388631,2.2374,2642.0,2640.8,0.7]
[1724313388780,2.2374,2642.0,2641.1,0.7]
[1724313388980,1.178,2641.9,2640.8,1.23093025]
[1724313389279,0.07668623,2641.8,2640.8,1.23093025]
[1724313389518,1.178,2641.9,2640.9,0.53093025]
[1724313389817,1.178,2641.9,2641.2,0.7]
[1724313390122,9.5426,2642.1,2641.6,0.7]
[1724313390676,0.07668623,2642.0,2641.4,3.0]
[1724313390978,0.03694363,2641.9,2641.3,0.7]
[1724313391218,9.5426,2642.1,2641.3,0.7]
[1724313391219,0.96192862,2642.0,2641.3,0.7]
[1724313391393,0.96192862,2642.0,2641.5,1.516011]
[1724313391394,0.03692689,2641.8,2641.5,1.516011]
[1724313391598,1.05045286,2641.9,2641.6,0.7]
[1724313391901,0.03693231,2641.8,2641.6,8.01650025]
[1724313392231,3.092,2643.3,2641.6,8.01650025]
[1724313392232,9.0342,2643.2,2642.0,0.7]
[1724313392428,0.68753,2643.1,2642.0,0.7]
[1724313392610,0.80011319,2643.1,2642.0,0.7]
[1724313392807,0.80011319,2643.1,2641.9,3.0]
[1724313392808,14.6611,2643.0,2641.9,3.0]
[1724313393009,11.5691,2643.0,2641.8,3.78527]
[1724313393239,0.03589255,2642.9,2641.9,6.78514]
[1724313393539,1.19280255,2642.9,2642.3,3.78456]
[1724313393736,1.19280255,2642.9,2642.4,3.0]
[1724313393935,11.5691,2643.0,2642.7,3.78397]
[1724313394123,9.4433,2643.0,2642.8,3.0]
[1724313394338,9.4433,2643.0,2642.4,3.0]
[1724313394500,0.98046365,2642.9,2642.3,0.7]
[1724313394701,0.94433,2642.9,2642.3,0.7]
[1724313394905,0.94433,2642.9,2642.5,1.515447]
[1724313395107,0.03622657,2642.8,2642.5,1.515447]
[1724313396063,1.038763,2642.8,2642.5,1.515447]
[1724313396258,0.0353772,2642.7,2642.5,1.515447]
[1724313396607,1.038763,2642.8,2642.5,1.515447]
[1724313396856,0.03570323,2642.6,2642.5,1.515447]
[1724313397747,1.038763,2642.8,2642.5,1.515447]
[1724313398066,0.51794325,2642.7,2642.5,1.515447]
[1724313399028,9.7937,2642.5,2641.5,8.18]
[1724313399241,0.07668623,2642.4,2641.5,0.7]
[1724313399554,0.11219514,2642.4,2641.4,0.53093025]
[1724313399736,5.26220476,2642.4,2641.4,0.53093025]
[1724313399947,5.26220476,2642.4,2641.6,1.516007]
[1724313400260,3.78466,2642.3,2641.6,1.516007]
[1724313400631,0.03549636,2642.2,2641.6,1.516007]
[1724313400811,2.93496431,2642.3,2641.6,1.516007]
[1724313401011,0.03429875,2642.1,2641.6,1.516007]
[1724313401255,0.03427655,2642.2,2641.6,1.516007]
[1724313401403,0.03426401,2642.0,2641.6,1.516007]
[1724313401608,0.03547075,2642.1,2641.6,1.516007]
[1724313401951,0.03547075,2642.1,2641.0,3.0]
[1724313401952,9.6412,2642.0,2640.9,0.53093025]
[1724313402116,1.34615308,2641.9,2640.9,0.53093025]
[1724313402520,1.34615308,2641.9,2641.1,1.516007]
[1724313402684,9.6412,2642.0,2641.3,4.48597]
[1724313402891,9.6412,2642.0,2641.4,4.31680025]
[1724313403044,9.6412,2642.0,2641.5,3.78572]
[1724313403254,0.43004339,2642.2,2641.4,0.53093025]
[1724313403642,0.43004339,2642.2,2641.3,0.7]
[1724313405244,0.43004339,2642.2,2641.1,1.516007]
[1724313405443,0.42146634,2642.1,2641.1,5.302247]
[1724313405658,0.43004339,2642.2,2641.2,0.53093025]
[1724313405862,0.43004339,2642.2,2641.2,4.31708025]
[1724313406300,0.43004339,2642.2,2641.2,0.53093025]
[1724313406507,0.43004339,2642.2,2641.2,4.31707025]
[1724313406707,0.43004339,2642.2,2641.2,0.53093025]
[1724313407012,0.43004339,2642.2,2641.4,3.78585]
[1724313407226,0.43004339,2642.2,2641.5,3.0]
[1724313407724,0.43004339,2642.2,2641.6,0.7]
[1724313408084,0.43004339,2642.2,2641.5,3.0]
[1724313408625,0.07668623,2642.1,2641.5,3.0]
[1724313408913,0.07668623,2642.1,2641.3,3.7]
[1724313409128,0.43004339,2642.2,2641.3,3.7]
[1724313409264,0.42147034,2642.1,2641.3,3.0]
[1724313409600,0.43004339,2642.2,2641.4,1.23093025]
[1724313409922,0.43004339,2642.2,2641.5,3.78562]
[1724313410136,9.9357,2642.4,2641.6,3.0]
[1724313410517,9.9357,2642.4,2641.6,3.53093025]
[1724313410690,9.9357,2642.4,2641.7,3.78544]
[1724313410889,9.9357,2642.4,2641.8,3.0]
[1724313411108,11.08351,2643.1,2641.9,3.78512]
[1724313411421,8.09,2643.1,2642.1,0.7]
[1724313411606,0.79,2643.4,2642.4,0.7]
[1724313412000,0.79,2643.4,2642.4,3.7]
[1724313412195,0.809,2643.3,2642.4,3.7]
[1724313412401,0.809,2643.3,2642.5,1.515396]
[1724313412801,0.79,2643.4,2642.5,1.515396]
[1724313414811,9.733,2643.6,2642.6,3.78413]
[1724313415133,9.733,2643.6,2642.7,3.0]
[1724313415308,9.733,2643.6,2642.8,0.7]
[1724313415309,1.0523,2643.5,2642.8,0.7]
[1724313415625,0.79,2643.7,2642.9,3.78359]
[1724313415787,0.79,2643.7,2643.0,3.0]
[1724313415987,7.3,2644.4,2643.0,3.0]
[1724313415988,1.032984,2645.9,2644.7,9.3169]
[1724313416301,1.032984,2645.9,2644.5,0.7]
[1724313416302,3.77985,2645.7,2644.5,0.7]
[1724313416488,1.303825,2645.6,2644.8,0.7]
[1724313416721,1.032984,2645.9,2644.8,0.7]
[1724313416900,1.032984,2645.9,2644.8,7.48092]
[1724313417186,0.03441607,2645.8,2644.9,0.7]
[1724313417392,0.07668623,2645.7,2644.9,0.7]
[1724313417615,1.06355447,2645.8,2644.7,1.514026]
[1724313417616,0.03507832,2645.6,2644.7,4.514026]
[1724313417843,0.03507832,2645.6,2644.7,1.514026]
[1724313417995,3.81496832,2645.6,2644.7,1.514026]
[1724313418190,0.38149683,2645.5,2644.7,1.514026]
[1724313418522,9.0818,2645.3,2644.7,1.514026]
[1724313418716,0.07668623,2645.2,2644.2,3.7]
[1724313419033,9.0818,2645.3,2644.3,1.514442]
[1724313419243,3.85721623,2645.2,2644.3,1.514442]
[1724313419383,5.45256062,2645.1,2644.2,0.7]
[1724313419583,0.03562034,2645.0,2643.8,1.28667207]
[1724313419811,0.07668623,2644.9,2643.8,0.7]
[1724313420014,0.11227647,2644.8,2643.8,0.7]
[1724313420183,9.2041,2644.7,2644.2,1.514442]
[1724313420419,0.03544397,2644.6,2643.5,4.48277]
[1724313420582,1.33751999,2644.6,2643.5,0.7]
[1724313420791,9.13907205,2644.7,2643.6,1.514708]
[1724313421019,0.95467251,2644.6,2643.6,1.514708]
[1724313421494,0.16575725,2644.6,2643.6,1.514708]
[1724313422329,0.16575725,2644.6,2643.6,5.297328]
[1724313422499,0.16575725,2644.6,2643.7,3.0]
[1724313423144,0.03426251,2644.6,2644.1,0.7]
[1724313423428,3.78051,2645.2,2644.1,3.7]
[1724313423622,7.90075,2645.7,2644.1,3.7]
[1724313423623,0.378051,2645.1,2644.1,3.7]
[1724313423823,9.1835,2645.4,2644.4,0.7]
[1724313424539,3.78032,2645.3,2644.4,0.7]
[1724313424716,1.296382,2645.2,2644.4,0.7]
[1724313425233,12.9631,2645.8,2644.4,4.93282874]
[1724313425430,9.1835,2645.8,2644.9,0.7]
[1724313425651,3.78065,2645.1,2644.5,3.0]
[1724313425787,3.78065,2645.1,2644.2,3.0]
[1724313425788,3.85742623,2645.0,2644.2,3.0]
[1724313426014,13.34115,2645.1,2644.1,3.7]
[1724313426298,3.78079,2645.0,2644.2,3.2867089]
[1724313426496,9.5605,2645.1,2644.1,0.78330224]
[1724313426497,9.5605,2645.1,2644.1,2.75531118]
[1724313426731,9.5605,2645.1,2643.9,2.75531118]
[1724313426732,7.5624,2644.7,2643.9,2.75531118]
[1724313427037,3.78116,2644.7,2644.0,1.31485155]
[1724313427252,4.159436,2644.6,2643.8,0.7]
[1724313427394,3.78152,2644.5,2643.8,0.7]
[1724313427733,3.78189,2644.2,2643.5,2.75568464]
[1724313427904,3.78224,2644.0,2643.3,3.4873544]
[1724313428104,3.78181,2644.3,2643.4,1.31515912]
[1724313428431,3.78181,2644.3,2643.3,3.4873544]
[1724313428432,3.78201,2644.1,2643.3,3.4873544]
[1724313428614,4.160351,2644.0,2643.4,1.31513603]
[1724313428843,0.378201,2644.0,2643.4,1.31513603]
[1724313429359,0.378201,2644.0,2643.2,4.27068264]
[1724313429569,0.378201,2644.0,2643.3,1.31514778]
[1724313430079,0.378201,2644.0,2643.4,1.31513492]
[1724313430232,13.11991,2644.4,2643.3,1.9723824]
[1724313430436,13.11991,2644.4,2643.4,1.31510588]
[1724313430637,13.11991,2644.4,2643.2,2.75568464]
[1724313430838,13.11991,2644.4,2643.3,1.31510251]
[1724313431191,9.3383,2644.4,2643.5,0.7]
[1724313431461,14.4697826,2644.4,2643.4,3.0]
[1724313431767,3.78203,2644.1,2643.4,3.0]
[1724313431920,3.78216,2644.0,2643.2,3.0]
[1724313432123,10.6881026,2644.4,2643.1,4.515061]
[1724313432124,3.78245,2643.8,2643.1,4.515061]
[1724313432468,9.5392,2643.7,2643.0,3.0]
[1724313432670,9.5392,2643.7,2643.0,1.515158]
[1724313432671,3.78282,2643.6,2643.0,1.515158]
[1724313432866,5.114985,2643.6,2642.6,0.7]
[1724313433168,5.114985,2643.6,2642.7,1.515305]
[1724313434471,8.897815,2643.6,2642.7,1.515305]
[1724313434629,3.78297,2643.5,2642.7,1.515305]
[1724313434827,3.78297,2643.5,2642.6,0.7]
[1724313434828,0.8897955,2643.4,2642.6,0.7]
[1724313435180,5.114985,2643.6,2642.6,1.515328]
[1724313435384,3.78311,2643.4,2642.6,1.515328]
[1724313435970,3.78331,2643.2,2642.3,3.7]
[1724313436168,9.4064,2643.1,2642.4,1.515477]
[1724313436340,9.784731,2643.1,2642.4,1.515477]
[1724313436544,3.78381,2642.9,2641.9,7.48]
[1724313436744,13.568181,2643.1,2642.1,1.51566]
[1724313437068,0.9784731,2643.0,2642.1,1.51566]
[1724313437244,0.9784731,2643.0,2641.7,0.7]
[1724313437245,3.784,2642.8,2641.7,0.7]
[1724313437447,3.78396,2642.8,2641.9,1.51566]
[1724313437642,0.3784,2642.7,2641.9,1.51566]
[1724313437854,3.7838,2642.9,2641.7,0.7]
[1724313438084,3.7838,2642.9,2641.7,2.66711474]
[1724313438270,0.85459131,2642.8,2641.7,2.66711474]
[1724313438958,4.63846131,2642.8,2641.7,2.66711474]
[1724313439577,4.63846131,2642.8,2641.8,3.0]
[1724313441068,3.7843,2642.5,2641.8,3.0]
[1724313441406,12.93605,2642.4,2641.6,3.0]
[1724313441793,12.93605,2642.4,2641.6,4.515936]
[1724313441952,12.93609,2642.4,2641.1,1.27954382]
[1724313442157,5.1161217,2642.3,2641.1,7.18027112]
[1724313442383,5.1160517,2642.3,2641.4,1.51603]
[1724313442610,1.3314517,2642.3,2641.4,1.51603]
[1724313442819,1.3314517,2642.3,2641.4,1.96736874]
[1724313442996,1.3314517,2642.3,2641.4,2.54270661]
[1724313443201,1.3314517,2642.3,2641.4,1.51603]
[1724313443374,5.1161517,2642.3,2641.2,3.0]
[1724313443709,3.78495,2642.1,2641.2,3.0]
[1724313443912,0.378495,2642.0,2641.2,3.0]
[1724313444100,5.1160317,2642.3,2641.2,3.0]
[1724313444472,3.78482,2642.2,2641.2,3.45133874]
[1724313444680,3.78501,2642.0,2641.2,3.0]
[1724313444878,4.29649717,2642.1,2641.1,1.516064]
[1724313445108,3.78487,2642.1,2641.1,1.516064]
[1724313445605,3.78518,2641.9,2641.1,1.516064]
[1724313445813,9.8781,2641.8,2640.8,1.73088256]
[1724313445980,10.256618,2641.8,2640.8,1.73088256]
[1724313446507,10.256618,2641.8,2640.9,1.516254]
[1724313447074,3.78546,2641.7,2640.9,1.516254]
[1724313447304,3.78546,2641.7,2640.8,1.73088256]
[1724313447483,1.4042078,2641.6,2640.9,1.516331]
[1724313447739,1.4042078,2641.6,2640.8,0.7]
[1724313447913,1.4042078,2641.6,2640.8,2.216361]
[1724313448116,0.51896478,2641.5,2640.8,2.216361]
[1724313448353,0.51896478,2641.5,2640.8,0.7]
[1724313450415,1.4042078,2641.6,2640.8,0.7]
[1724313450618,14.041988,2641.8,2640.8,0.7]
[1724313451211,3.78546,2641.7,2640.8,0.7]
[1724313451419,10.256618,2641.8,2640.8,0.7]
[1724313451870,10.256618,2641.8,2640.9,3.78657]
[1724313452041,10.256618,2641.8,2641.0,4.351487]
[1724313452380,14.041988,2641.8,2640.9,3.0]
[1724313452523,14.041988,2641.8,2640.7,4.516422]
[1724313452724,1.4041988,2641.7,2640.7,6.21218737]
[1724313452924,5.1897188,2641.7,2640.7,4.516422]
[1724313453328,1.4041988,2641.7,2640.7,4.516422]
[1724313453532,1.4041988,2641.7,2640.8,4.48672]
[1724313453762,1.4041988,2641.7,2640.9,3.0]
[1724313453978,1.16608168,2641.6,2640.9,3.0]
[1724313454181,1.16608168,2641.6,2640.8,3.7]
[1724313454983,1.16608168,2641.6,2640.8,7.48671]
[1724313455213,1.16608168,2641.6,2641.4,15.0]
[1724313455492,10.256618,2641.8,2641.4,15.0]
[1724313455643,0.378518,2641.8,2641.4,15.0]
[1724313455843,16.6446,2642.2,2641.5,3.0]
[1724313456356,20.42933,2642.2,2641.5,3.0]
[1724313457718,3.7851,2642.0,2641.5,3.0]
[1724313457839,24.21423,2642.2,2641.5,3.0]
[1724313458038,2.421423,2642.1,2641.5,3.0]
[1724313458495,3.78525,2641.9,2641.4,15.0]
[1724313458793,6.206373,2642.1,2641.4,15.0]
[1724313458937,2.2850973,2642.0,2641.4,15.0]
[1724313459571,2.2850973,2642.0,2641.5,3.0]
[1724313460806,9.8553373,2642.0,2641.5,3.0]
[1724313461278,2.2850973,2642.0,2641.5,3.0]
[1724313461468,7.3,2642.2,2641.5,3.0]
[1724313462141,12.81815,2642.6,2641.5,3.0]
[1724313462824,3.78451,2642.4,2641.5,3.0]
[1724313462977,0.378451,2642.3,2641.5,3.0]
[1724313464383,16.60242,2642.6,2641.5,3.0]
[1724313464588,9.7088,2643.0,2641.6,4.48558]
[1724313464790,9.7088,2643.0,2641.8,3.78526]
[1724313465022,1.70088,2642.9,2641.9,9.0928]
[1724313465191,1.70088,2642.9,2641.9,12.0928]
[1724313465587,5.48463,2642.9,2641.9,12.0928]
[1724313465936,1.70088,2642.9,2641.9,12.0928]
[1724313466220,1.70088,2642.9,2642.0,1.70473445]
[1724313467775,1.70088,2642.9,2641.9,12.7928]
[1724313467776,3.78401,2642.7,2641.9,12.7928]
[1724313469102,3.78387,2642.8,2641.9,12.7928]
[1724313469575,13.59777,2642.8,2641.9,12.7928]
[1724313469765,3.78415,2642.6,2641.9,3.0]
[1724313469913,1.908246,2642.7,2641.5,9.2895]
[1724313469914,3.78453,2642.4,2641.5,9.2895]
[1724313470257,1.908246,2642.7,2641.4,16.515978]
[1724313470258,9.1276,2642.1,2641.4,16.515978]
[1724313470441,12.91247,2642.1,2641.4,15.0]
[1724313470648,3.78454,2642.4,2641.4,15.0]
[1724313470806,3.78453,2642.4,2641.4,15.0]
[1724313471009,1.291213,2642.3,2641.4,15.0]
[1724313472344,5.075793,2642.3,2641.5,3.0]
[1724313472550,1.291213,2642.3,2641.5,3.0]
[1724313472977,5.075883,2642.3,2641.5,3.0]
[1724313473347,3.78473,2642.2,2641.5,3.0]
[1724313473560,4.2925343,2642.1,2641.5,3.0]
[1724313474106,0.5075943,2642.1,2641.5,3.0]
[1724313475386,1.291213,2642.3,2641.5,3.0]
[1724313475590,3.78473,2642.2,2641.5,3.0]
[1724313475797,3.78503,2642.0,2641.5,3.0]
[1724313476443,3.78488,2642.1,2641.5,3.0]
[1724313476779,0.378488,2642.0,2641.5,3.0]
[1724313476975,8.591213,2642.3,2641.5,3.0]
[1724313477173,12.375873,2642.3,2641.5,3.0]
[1724313477379,16.160543,2642.3,2641.5,3.0]
[1724313477689,3.78492,2642.1,2641.5,3.0]
[1724313477936,0.378492,2642.0,2641.5,3.0]
[1724313478541,4.163512,2642.0,2641.5,3.0]
[1724313480340,0.378492,2642.0,2641.5,3.0]
[1724313480940,13.969312,2642.0,2641.5,3.0]
[1724313481116,3.78515,2641.9,2641.5,3.0]
[1724313481427,5.1822942,2641.8,2641.5,3.0]
[1724313481836,5.1822542,2641.8,2641.5,3.0]
[1724313486046,1.3969342,2641.8,2641.5,3.0]
[1724313486435,0.378492,2642.0,2641.5,3.0]
[1724313487168,7.948692,2642.0,2641.5,3.0]
[1724313487371,3.78508,2642.0,2641.5,3.0]
[1724313487939,3.78522,2641.9,2641.5,3.0]
[1724313488234,3.78493,2642.1,2641.5,3.0]